Cogmind - Beta 13 @@@ ROGUE MODE // 2024.06.11 @ 18:47:48 Player: Selene Result: Destroyed by D-53 Grenadier with Mini Grenade Launcher Performance ------------- Evolutions (0) 0 Regions Visited (2) 400 Robots Destroyed (18) 90 Value Destroyed (480) 480 Prototype IDs (4) 80 Alien Tech Used (0) 0 Bonus (0) 0 TOTAL SCORE: 1050 Bonus ------- None Cogmind --------- Core Integrity 0/250 Matter 255/300 Energy 100/100 System Corruption 0% Temperature Cool (0) Movement Core (1350) Ox26 Location -10/Mines Parts ------- > --- POWER (1) -------- (None) > --- PROPULSION (2) --- (None) > --- UTILITY (2) ------ Huge Storage Unit Seismic Detector > --- WEAPON (2) ------- (None) > --- INVENTORY (25) --- Ion Engine Light Nuclear Core Light Treads Light Treads Aluminum Leg Aluminum Leg Aluminum Leg Hover Unit Hover Unit Hover Unit Hover Unit Improved Heat Sink Large Storage Unit High-capacity Storage Unit Huge Storage Unit Large Matter Pod (150) Structural Scanner Seismic Detector EM Pulse Gun EM Pulse Gun Light Cannon Grenade Launcher Grenade Launcher Welding Torch Hammer Peak State ------------ > --- POWER ------------ Ion Engine > --- PROPULSION ------- Light Treads Light Treads > --- UTILITY ---------- Huge Storage Unit Seismic Detector > --- WEAPON ----------- Small Laser Small Laser > --- INVENTORY -------- Ion Engine Light Treads Aluminum Leg Aluminum Leg Aluminum Leg Aluminum Leg Aluminum Leg Aluminum Leg Aluminum Leg Aluminum Leg Hover Unit Hover Unit Medium Storage Unit Huge Storage Unit Medium Matter Pod Large Matter Pod EM Pulse Gun EM Pulse Gun Grenade Launcher Welding Torch [Rating: 9] Favorites ----------- Power Ion Engine Engine Ion Engine Propulsion Light Treads Treads Light Treads Leg Aluminum Leg Utility Seismic Detector Device Seismic Detector Storage Huge Storage Unit Weapon Small Laser Energy Gun Small Laser Ballistic Gun Light Assault Rifle Ballistic Cannon Light Cannon Launcher Grenade Launcher Impact Weapon Hammer Build | -11 -10 -10 ------- Run | Yrd Mat Min Slots Evolved . | . . . Power . | . . . Propulsion . | . . . Utility . | . . . Weapon . | . . . Parts Attached 29 | 7 20 2 Power 5 | 1 4 . Engine 5 | 1 4 . Core . | . . . Reactor . | . . . Propulsion 8 | 2 6 . Treads 4 | . 4 . Leg 4 | 2 2 . Wheel . | . . . Hover . | . . . Flight . | . . . Utility 5 | 2 3 . Device 2 | 1 1 . Storage 3 | 1 2 . Processor . | . . . Hackware . | . . . Protection . | . . . Artifact . | . . . Weapon 11 | 2 7 2 Energy Gun 7 | 1 5 1 Energy Cannon . | . . . Ballistic Gun 1 | 1 . . Ballistic Cannon 1 | . 1 . Launcher 1 | . . 1 Special Weapon . | . . . Impact Weapon 1 | . 1 . Slashing Weapon . | . . . Piercing Weapon . | . . . Special Melee Weapon . | . . . Unidentified Prototypes . | . . . Parts Lost 5 | . . 5 Power 1 | . . 1 Propulsion 2 | . . 2 Utility . | . . . Weapon 2 | . . 2 Highest Loss Streak 5 | . . 5 To Critical Strikes . | . . . Average Slot Usage (%) 99 | . 99 99 Engine 13 | . 14 13 Treads 23 | . 22 27 Leg 3 | . 5 . Device 14 | . 14 14 Storage 14 | . 14 14 Energy Gun 21 | . 21 21 Ballistic Gun 1 | . 1 . Ballistic Cannon 1 | . 2 . Launcher 2 | . . 6 Impact Weapon 1 | . 1 . Naked Turns . | . . . Heaviest Build 91 | 11 90 91 Greatest Support 40 | 20 40 40 Greatest Overweight (x) 26 | . 2 26 Average Overweight (x) 1 | . 1 2 Largest Inventory Capacity 25 | 8 25 25 Average Capacity 22 | 7 21 25 Most Carried 25 | 4 25 25 Average Carried 21 | 2 20 24 Final Capacity 25 | 8 25 25 Final Carried 25 | 4 25 25 Class Distribution -------------------- 95% | Mutant 4% | Scavenger-Mutant Dominant Class ---------------- Mutant | -10/Materials Mutant | -10/Mines Resources | -11 -10 -10 ----------- Run | Yrd Mat Min Matter Collected 780 | 272 508 . Remotely . | . . . Salvage Created 752 | 25 645 82 Parts 41 | 2 33 6 Haulers Intercepted 2 | . 2 . Recyclers Shooed . | . . . Parts Field Recycled . | . . . Retrieved Matter . | . . . Parts Self-Destructed . | . . . Prevented . | . . . Kills | -11 -10 -10 ------- Run | Yrd Mat Min Combat Hostiles Destroyed 11 | . 9 2 Guns 6 | . 6 . Cannons 3 | . 3 . AOE 2 | . . 2 Classes Destroyed 6 | 1 4 1 Builder 1 | . . 1 Tunneler 1 | 1 . . Hauler 2 | . 2 . Recycler 1 | . 1 . Watcher 2 | . 2 . Grunt 11 | . 9 2 Best Kill Streak 3 | 1 2 3 Combat Bots Only 2 | . 2 2 Max Kills in Single Turn 1 | 1 1 1 Gunslinging . | . . . Exploded 1 | . . 1 Melee . | . . . Uniques/NPCs Destroyed . | . . . Combat | -11 -10 -10 -------- Run | Yrd Mat Min Hostile Shots Fired 77 | . 59 18 Missed 14 | . 11 3 Damage Taken 1153 | . 638 515 Core 261 | . 181 80 Absorbed by Shields . | . . . Regen/Repaired (Parts) 59 | . 59 . Core Remaining (%) 100 | 100 . . Volleys Fired 58 | 2 51 5 Largest 2 | 2 2 2 Hottest 90 | 60 90 90 Shots Fired 111 | 4 101 6 Gun 94 | 4 88 2 Cannon 13 | . 13 . Launcher 4 | . . 4 Special . | . . . Kinetic 38 | 2 36 . Thermal 69 | 2 65 2 Explosive 4 | . . 4 Electromagnetic . | . . . Robot Hit Streak 11 | 2 9 11 Robot Miss Streak 3 | 1 3 . Penetration Max . | . . . Secondary Targets . | . . . Shots Hit Robots 75 | 2 69 4 Core Hits 33 | 1 28 4 Critical Kills . | . . . Critical Parts Destroyed . | . . . Critical Strikes . | . . . Melee Attacks 1 | . 1 . Impact 1 | . 1 . Slashing . | . . . Piercing . | . . . Sneak Attacks . | . . . Combat Hostiles . | . . . Follow-up Attacks . | . . . Damage Inflicted 996 | 22 776 198 Guns 684 | 22 650 12 Cannons 126 | . 126 . Explosions 186 | . . 186 Melee . | . . . Ramming . | . . . Kinetic 283 | 10 273 . Thermal 527 | 12 503 12 Explosive 186 | . . 186 Electromagnetic . | . . . Impact . | . . . Slashing . | . . . Piercing . | . . . Highest Corruption . | . . . Average Corruption . | . . . Corruption Purged . | . . . Corruption Blocked . | . . . Overload Shots . | . . . Overflow Damage . | . . . Projectiles . | . . . Explosions . | . . . Melee . | . . . Knockbacks 2 | . 2 . Impact . | . . . Kinetic 2 | . 2 . Secondary . | . . . Self-Inflicted Damage 22 | . . 22 Shots 1 | . . 1 Rammed . | . . . Targets Rammed . | . . . Kicked . | . . . Crushed . | . . . Highest Temperature 224 | 40 224 30 Average Temperature 57 | 24 59 12 Received Heat Transfer 390 | . 360 30 Siege Activations . | . . . Robots Corrupted . | . . . Combat Hostiles . | . . . Parts Fried . | . . . Impact Corruptions . | . . . Robots Melted . | . . . Combat Hostiles . | . . . Parts Melted 2 | . 2 . Heat Transferred 1234 | 25 1172 37 Parts Sabotaged . | . . . Parts Stolen . | . . . Parts Stripped . | . . . Power Chain Reactions . | . . . Alert | -11 -10 -10 ------- Run | Yrd Mat Min Peak Influence 137 | 5 137 105 Initial 3 | . 3 3 Average 36 | 1 34 46 Maximum Alert Level . | . . . Low Security (%) 100 | 100 100 100 Level 1 . | . . . Level 2 . | . . . Level 3 . | . . . Level 4 . | . . . Level 5 . | . . . High Security . | . . . Max Security . | . . . Squads Dispatched 1 | . 1 . Investigation 1 | . 1 . Extermination . | . . . Reinforcement . | . . . Assault . | . . . Garrison . | . . . Intercept . | . . . Searches Triggered . | . . . Construction Impeded . | . . . Haulers Reinforced . | . . . Active Scanning Responses . | . . . Cargo Convoy Interrupts . | . . . Stealth | -11 -10 -10 --------- Run | Yrd Mat Min Distress Signals . | . . . Communications Jammed . | . . . Distress Signals . | . . . Times Spotted 21 | . 15 6 Peak Tracking Total 2 | . 2 2 Tactical Retreats 3 | . 2 1 Traps | -11 -10 -10 ------- Run | Yrd Mat Min Traps Triggered 1 | . 1 . Indirectly . | . . . Trap Hack Attempts . | . . . Triggered . | . . . Disarmed . | . . . Reprogrammed . | . . . Reused . | . . . Traps Extracted . | . . . Installed . | . . . Triggered . | . . . Machines | -11 -10 -10 ---------- Run | Yrd Mat Min Machines Disabled . | . . . Max in Single Turn . | . . . Machines Repaired . | . . . Machines Dismantled . | . . . Machines Sabotaged . | . . . Overloaded Fab Kills . | . . . Hacking | -11 -10 -10 --------- Run | Yrd Mat Min Machines Accessed 11 | . 11 . Terminals 8 | . 8 . Fabricators . | . . . Repair Stations 1 | . 1 . Recycling Units 2 | . 2 . Scanalyzers . | . . . Garrison Access . | . . . Total Hacks 39 | . 39 . Successful 23 | . 23 . Failed 16 | . 16 . Catastrophic 3 | . 3 . Database Lockouts . | . . . Manual 22 | . 22 . Terminals 31 | . 31 . Fabricators . | . . . Repair Stations 2 | . 2 . Recycling Units 6 | . 6 . Scanalyzers . | . . . Garrison Access . | . . . Terminal Hacks 15 | . 15 . Robot Analysis 3 | . 3 . Prototype ID Bank 3 | . 3 . Emergency Access Points 2 | . 2 . Locate Traps 2 | . 2 . Dispatch Records 1 | . 1 . Hauler Manifests 2 | . 2 . Zone Layout 2 | . 2 . Fabricator Hacks . | . . . Repair Station Hacks 2 | . 2 . Scan Component 1 | . 1 . Repair 1 | . 1 . Recycling Unit Hacks 1 | . 1 . Retrieve Components 1 | . 1 . Scanalyzer . | . . . Garrison Access Hacks . | . . . Unauthorized Hacks 5 | . 5 . Terminals 4 | . 4 . Assimilate 2 | . 2 . Botnet 2 | . 2 . Fabricators . | . . . Repair Stations . | . . . Recycling Units 1 | . 1 . Reject 1 | . 1 . Scanalyzers . | . . . Garrison Access . | . . . Data Cores Recovered . | . . . Used . | . . . Hacking Detections 10 | . 10 . Full Trace Events . | . . . Feedback Events . | . . . Feedback Blocked . | . . . Robot Schematics Acquired . | . . . Robots Built . | . . . Authchips . | . . . Time . | . . . Total Robot Build Rating . | . . . Part Schematics Acquired . | . . . Parts Built . | . . . Authchips . | . . . Time . | . . . Total Part Build Rating . | . . . Parts Repaired 1 | . 1 . Time 26 | . 26 . Parts Recycled . | . . . Recycled Matter . | . . . Retrieved Matter . | . . . Retrieved Components 7 | . 7 . Parts Scanalyzed . | . . . Part Schematics Acquired . | . . . Parts Damaged . | . . . Bothacking | -11 -10 -10 ------------ Run | Yrd Mat Min Used RIF Installer . | . . . Robots Hacked . | . . . Non-combat . | . . . Combat . | . . . Robot Hacks Applied . | . . . Relay Couplers Released . | . . . Fabnet Peak Effective % . | . . . Robots Rewired . | . . . Allies Hacked . | . . . Hacks Repelled . | . . . Allies | -11 -10 -10 -------- Run | Yrd Mat Min Total Allies . | . . . Largest Group . | . . . Highest-Rated Group . | . . . Highest-Rated Ally . | . . . Total Orders . | . . . Ally Attacks . | . . . Total Damage . | . . . Kills . | . . . Allies Corrupted . | . . . Allies Melted . | . . . Intel | -11 -10 -10 ------- Run | Yrd Mat Min Robot Analysis Total 3 | . 3 . Derelict Logs Recovered 2 | . . 2 Drone Launches . | . . . Drone Recoveries . | . . . Exploration | -11 -10 -10 ------------- Run | Yrd Mat Min Turns Passed 2839 | 90 1891 858 Spaces Moved 938 | 59 644 235 Core 5 | 4 . 1 Treads 652 | . 418 234 Legs 281 | 55 226 . Wheels . | . . . Hover . | . . . Flight . | . . . Fastest Speed 50 | 50 120 320 Average Speed 259 | 115 249 325 Slowest Speed 1350 | 120 320 1350 Overloaded Moves . | . . . Propulsion Burnouts . | . . . Robots Hopped . | . . . Cave-ins Triggered . | . . . Exploration Rate (%) 48 | 5 96 44 Regions Visited 2 Branch Regions 1 Pre-discovered Areas . | . . . Known Exits Taken . | . . . Unknown Exits Taken 2 | 1 1 . Scrap Searched . | . . . Spaces Dug 1 | . 1 . Terrain Destroyed 39 | . 1 38 Melee 1 | . 1 . Projectile . | . . . AOE 38 | . . 38 Terrain Rammed . | . . . Walls Destroyed . | . . . Machines Disabled . | . . . Actions | -11 -10 -10 --------- Run | Yrd Mat Min Total 1251 | 74 843 334 Wait 163 | 3 70 90 Move 936 | 58 643 235 Hop . | . . . Pick Up 38 | 4 33 1 Fast Attach 9 | 7 2 . Attach . | . . . Detach . | . . . Swap 20 | . 18 2 Drop 26 | . 25 1 Fire 58 | 2 51 5 Melee 1 | . 1 . Ram . | . . . Kick . | . . . Crush . | . . . Escape Stasis . | . . . Rewire . | . . . Trap . | . . . Miscellaneous . | . . . Route ------- -11/Scrapyard -10/Materials (discovered 5 exits: [*Mat x3] / [*Min x2]) -10/Mines History --------- Turn | Location | Event 9 | -11/Scrapyard | Discovered new exit (range 16) 91 | -11/Scrapyard | Entered Materials 316 | -10/Materials | Build established: Mutant 389 | -10/Materials | Discovered new exit (range 13) 668 | -10/Materials | Discovered new exit (range 5) 735 | -10/Materials | Core integrity fell below 50% 1222 | -10/Materials | Discovered new exit (range 4) 1296 | -10/Materials | Discovered new exit (range 7) 1830 | -10/Materials | Repaired Lgt. Treads 1864 | -10/Materials | Discovered new exit (range 9) 1982 | -10/Materials | Entered Mines 1983 | -10/Mines | Assembled infested the area 2122 | -10/Mines | Learned 2 Materials zone layouts 2189 | -10/Mines | Learned Materials security intel 2837 | -10/Mines | Core integrity fell below 20% 2840 | -10/Mines | Destroyed by D-53 Grenadier with Mini Grenade Launcher Last Messages --------------- 02421_ U-05 Engineer builds a Wall. 02423_ Acquired Structural Scanner. 02424_ The unstable cave ceiling collapses. 02425_ U-05 Engineer lays Concrete. 02429_ U-05 Engineer builds a Wall. 02829_ The unstable cave ceiling collapses. 02832_ U-05 Engineer builds a Wall. 02832_ Lgt. Treads destroyed. 02832_ Ion Engine destroyed. 02834_ D-53 Grenadier destroyed. 02835_ The unstable cave ceiling collapses. 02836_ Sml. Laser destroyed. 02836_ Lgt. Treads destroyed. 02836_ T-07 Excavator destroyed. 02837_ U-05 Engineer lays Concrete. 02838_ Med. Laser destroyed. 02838_ K-01 Serf destroyed. 02838_ U-05 Engineer lays Concrete. 02839_ The unstable cave ceiling collapses. 02839_ U-05 Engineer lays Concrete. Map ----- +----------------------------------------------------+ | ???????????????????????????????????????????????? | | ???????????????????????????????????????????????? | | ???????????????????????????????????????????????? | | ???????????????????????????????????????????????? | | ???????????????????????????????????????????????? | | ???????????????????????????????????????????????? | | ???????????????????????????????????????????????? | | ???????????????????????????????????????????????? | | ????????????????###????????????????????????????? | | ??????######???? ????????????????????????????? | | ??????# ##??? ????????????????????????????? | | ??????# ##??# #????????????????????????????? | | ??????## ##?# #????????????????????????????? | | ???????### #?# #????????????????????????????? | | ?????????## ### ####?????????????????????????? | | ??????????# ## #?????????????????????????? | | ??????????# ## #?????????????????????????? | | ??????????# ##### #?????????????????????????? | | ??????????## ##?## #?????????#???? ????????? | | ???????????####??# ##??????? #### ?????????? | | ????????????????## ######?r ??????????? | | ???????????????## ## ????????????? | | ??????????????## # #??????????????? | | ?????????????## # r #???????????????? | | ?????????????# ## #?###????????????? | | ?????????????# @d #?# ##???????????? | | ?????????????### * ## ????????????? | | ??????????###### % #??????????? | | ??????????# #???????????? | | ??????????# # ## #???????????? | | ??????????# ####### # #u ##???#???????????? | | ??????????# #?????###### ##???????????????? | | ??????????# #??????#### #???????????????? | | ?????????## #?????## #???????????????? | | ????????## #?????# ##???????????????? | | ????????# ##?????# #####????????????????? | | ????????# ##????# % # #?????????????????? | | ???????## #????# # ##????????????????? | | ??###### #????# #????????????????? | | ### #????# #????????????????? | | ##??????? ###|* #????????????????? | | ## ###???????????#%= #????????????????? | | ?## ###????????###??#!=##????????????????? | | ??## ##?????????## ##?# =#?????????????????? | | ???# ##??????????# ### #?????????????????? | | ???# #??????????## ## #?????????????????? | | ??### ##????????## #???###???????????? | | ??# ##??????## ##### #???????????? | | ??# ######## #??????????? | | ??+ #???????????? | +----------------------------------------------------+ Best States ------------- Heat Dissipation 25 Energy Generation 10 Energy Capacity 250 Matter Stores 300 Matter Capacity 300 Sight Range 16 Terrain Scan Density 10 Evasion (%) 55 Recoil Reduction 2 Item Schematics ----------------- None Robot Schematics ------------------ None Fabricated ------------ Nothing Alien Tech Used ----------------- None Achievements -------------- None Challenges ------------ None Game ------ Seed SeismicLauncherDetonator Manual? 0 Play Time 00:22:26 Cumulative 76.8 hours Start 2024.06.10 @ 23:18:12 End 2024.06.11 @ 18:47:48 Sessions 2 Manual Loads 0 Difficulty Rogue Special Mode None Game No. 46 Rogue 43 Adventurer 3 Explorer 0 Win Type - Total 2 Types 2/0/0/0/0/0/0/0/0 Lore% 38 Gallery% 46 Achievement% 37 Wizard Run 0 Options --------- Layout 1 ASCII 0 Keyboard 1 Movement Vi Keybinds 1 Fullscreen 2 Font 24/Smallcaps Map View 50x35 Zoom Use 0% Tactical HUD 1 Map Filters NONE Filters NONE Steam 1 RUN: 45af098e-600a-468f-9271-4e91abec659d